[Event "4NCL 2021-22"]
[Site "England"]
[Date "2022.04.30"]
[Round "7.14"]
[White "Holland, James P"]
[Black "Turner, Matthew J"]
[Result "1/2-1/2"]
[ECO "C77"]
[WhiteElo "2224"]
[BlackElo "2474"]
[Annotator "TA"]
[PlyCount "30"]
[EventDate "2021.11.27"]
[EventType "team-tourn"]
[EventCountry "ENG"]
[SourceTitle "playchess.com"]
[Source "ChessBase"]
[SourceQuality "1"]
[TimeControl "40/6000+30:3000+30"]

{[%evp 9,30,0,0,0,0,0,0,0,0,-19,15,21,18,20,18,13,18,13,12,0,0,-14,16]} 1. e4 {[%emt 0:00:15]} e5 {[%emt 0:00:26]} 2. Nf3 {[%emt 0:00:17]} Nc6 {[%emt 0:00:10]} 3. Bb5 {[%emt 0:00:50]} a6 {[%emt 0:02:09]} 4. Ba4 {[%emt 0:00:38]} Nf6 {[%emt 0:01:20]} 5. Qe2 {[%emt 0:01:55]} Bd6 {[%emt 0:05:21] The position is equal.} (5... b5 $5 6. Bb3 Be7 $11) 6. c3 {[%emt 0:10:19] C77: Ruy Lopez: 3...a6 4 Ba4 Nf6, unusual lines.} O-O {[%emt 0:00:58]} 7. d3 {[%emt 0:08:17]} Re8 {[%emt 0:03:21]} 8. Nbd2 {[%emt 0:00:18][%cal Bb1d2,Bd2f1,Bf1e3][%mdl 32]} Bf8 {[%emt 0:03:57]} 9. Nf1 {[%emt 0:00:31]} d6 {[%emt 0:16:35]} 10. Bg5 {[%emt 0:20:17]} h6 {[%emt 0:02:19] [#]} 11. Bxf6 $146 {[%emt 0:03:30]} ({Predecessor:} 11. Bh4 Be7 12. Ne3 Nd7 13. Bg3 Nc5 14. Bc2 Ne6 15. Nd5 Bf8 16. O-O Nb8 17. d4 {1-0 (50) Durarbayli,V (2621)-Berczes,D (2506) South Padre Island 2014}) 11... Qxf6 {[%emt 0:00:07]} 12. Ne3 {[%emt 0:00:05]} Bd7 {[%emt 0:05:27]} 13. Bb3 {[%emt 0:17:44]} Ne7 {[%emt 0:04:09]} 14. g3 {[%emt 0:01:36]} Be6 {[%emt 0:08:38]} 15. Nh4 {[%emt 0:01:27]} a5 {[%emt 0:14:18] A rather calm draw.  Weighted Error Value: White=0.05 (flawless) /Black=0.04 (flawless)} 1/2-1/2

[Event "4NCL 2021-22"]
[Site "England"]
[Date "2022.04.30"]
[Round "7.15"]
[White "Kolbus, Dietmar"]
[Black "Lentzos, Ioanis"]
[Result "1/2-1/2"]
[ECO "A06"]
[WhiteElo "2305"]
[BlackElo "2138"]
[Annotator "TA"]
[PlyCount "54"]
[EventDate "2021.11.27"]
[EventType "team-tourn"]
[EventCountry "ENG"]
[SourceTitle "playchess.com"]
[Source "ChessBase"]
[SourceQuality "1"]
[TimeControl "40/6000+30:3000+30"]

{[%evp 9,54,21,20,0,9,6,12,9,8,0,0,-4,-10,-22,-18,-23,-15,-19,-31,-24,-12,-27,-38,-50,-39,-63,3,-45,22,28,23,18,33,27,210,-133,-118,-213,-103,-97,0,-197,0,-90,0,-214,0]} 1. c4 {[%emt 0:00:08]} c6 {[%emt 0:00:02]} 2. Nf3 {[%emt 0:05:35]} d5 {[%emt 0:00:08]} 3. e3 {[%emt 0:00:57]} Nf6 {[%emt 0:00:14]} 4. b3 {[%emt 0:03:05]} e6 {[%emt 0:00:57]} 5. Bb2 {[%emt 0:00:15]} Bd6 {[%emt 0:00:38]} 6. Be2 {[%emt 0:01:29] A06: Réti Opening: 1 Nf3 d5.} O-O {[%emt 0:00:20]} 7. O-O {[%emt 0:00:16]} b6 {[%emt 0:00:14]} 8. d4 {[%emt 0:00:58] The position is equal.} Nbd7 {[%emt 0:00:44]} 9. Nc3 {[%emt 0:01:38]} Bb7 {[%emt 0:00:12]} 10. cxd5 {[%emt 0:19:02]} exd5 {[%emt 0:01:33]} 11. Qc2 {[%emt 0:02:25]} Qe7 {[%emt 0:05:32]} 12. Bd3 {[%emt 0:01:01]} Rfe8 {[%emt 0:03:11]} 13. Bf5 {[%emt 0:31:09]} g6 {[%emt 0:23:12]} 14. Bh3 {[%emt 0:00:30] [#]} Ne4 $146 {[%emt 0:01:31]} ({Predecessor:} 14... h5 15. Rfe1 Ne4 16. Bxd7 Qxd7 17. Ne5 Qf5 18. f3 Nxc3 19. Qxf5 gxf5 20. Bxc3 f6 {½-½ (37) Petrosyan,M (2480)-Hammer,J (2689) Gjakova 2016}) 15. g3 {[%emt 0:06:02]} f5 {[%emt 0:02:45]} 16. Rfe1 {[%emt 0:00:48]} Rf8 {[%emt 0:11:32]} 17. Nd2 {[%emt 0:00:34]} h5 {[%emt 0:11:05]} ({Black should try} 17... Rac8 $15) 18. f3 {[%emt 0:04:19]} (18. Ncxe4 $11 dxe4 19. Nc4) 18... Nxg3 {[%emt 0:24:28]} 19. hxg3 $11 {[%emt 0:00:46]} Bxg3 {[%emt 0:00:04]} 20. Re2 {[%emt 0:00:29]} Ba6 {[%emt 0:00:14]} 21. Nf1 {[%emt 0:00:43]} Qh4 {[%emt 0:00:20] [#]} (21... Bxe2 $11 {and Black has nothing to worry.} 22. Nxe2 Bd6) 22. Kg2 $2 {[%emt 0:00:48]} ({White has to play} 22. Rg2 $1 $18 Bxf1 23. Rxf1 Qxh3 24. Ne2) 22... Bd6 $36 {[%emt 0:08:33][%mdl 3072] Black has strong compensation. Black is in control.} (22... Bxe2 $6 23. Nxe2 Be1 24. Nf4 $11) 23. Qb1 {[%emt 0:04:21]} (23. Bc1 $17) 23... Qg5+ {[%emt 0:03:10]} ({Worse is} 23... Bxe2 24. Nxe2 Rac8 25. Ng1 $17) (23... Rae8 $19 {has better winning chances. ...g5 is the strong threat.} 24. Qe1 Qe7) 24. Kh1 {[%emt 0:00:12]} Qh4 {[%emt 0:00:07]} (24... Bxe2 $17 25. Nxe2 Qh4) 25. Kg2 $19 {[%emt 0:00:14]} Qg5+ {[%emt 0:00:31]} ({Stronger than} 25... Bxe2 26. Nxe2 Rac8 27. Ng1 $17) (25... Rae8 $19 {Hoping for ...g5.} 26. Qe1 Qe7) 26. Kh1 $17 {[%emt 0:00:09]} Qh4 {[%emt 0:00:06]} (26... Bxe2 $17 27. Nxe2 Qh4) 27. Kg2 $19 {[%emt 0:00:19]} Qg5+ $2 {[%emt 0:00:07] Weighted Error Value: White=0.28 (precise) /Black=0.52} ({And not} 27... Bxe2 28. Nxe2 Rac8 29. Ng1 $17) (27... Rae8 $19 28. Qe1 Qe7) 1/2-1/2

[Event "4NCL 2021-22"]
[Site "England"]
[Date "2022.04.30"]
[Round "7.16"]
[White "Dilley, Jason M"]
[Black "Terbe, Julianna"]
[Result "1/2-1/2"]
[ECO "D00"]
[WhiteElo "2224"]
[BlackElo "2285"]
[Annotator "TA"]
[PlyCount "61"]
[EventDate "2021.11.27"]
[EventType "team-tourn"]
[EventCountry "ENG"]
[SourceTitle "playchess.com"]
[Source "ChessBase"]
[SourceQuality "1"]
[TimeControl "40/6000+30:3000+30"]

{[%evp 9,61,-3,2,-34,0,-6,11,0,13,9,7,20,46,0,39,19,22,31,25,29,66,2,43,45,27,0,0,0,1,-3,0,0,0,-6,0,0,0,7,7,2,5,4,2,6,13,0,0,0,0,0,0,0,0,0]} 1. d4 {[%emt 0:00:05]} d5 {[%emt 0:00:06]} 2. Bg5 {[%emt 0:00:16]} Nf6 {[%emt 0:00:12]} 3. Bxf6 {[%emt 0:00:27]} gxf6 {[%emt 0:00:07]} 4. e3 {[%emt 0:00:34]} c5 {[%emt 0:00:16]} 5. Nf3 {[%emt 0:13:15]} Nc6 {[%emt 0:07:51]} 6. c3 {[%emt 0:08:43] D00: 1 d4 d5: Unusual lines.} Qb6 {[%emt 0:10:12]} 7. Qb3 {[%emt 0:10:22]} e6 {[%emt 0:02:16]} 8. Nbd2 {[%emt 0:03:36]} Bd7 {[%emt 0:01:28]} 9. Be2 {[%emt 0:03:28] [#]} Rg8 $146 {[%emt 0:04:48]} ({Predecessor:} 9... f5 10. g3 Qxb3 11. axb3 b6 12. Ba6 Rb8 13. Bb5 a5 14. O-O Bd6 15. c4 Nb4 16. Bxd7+ Kxd7 17. cxd5 Nxd5 {½-½ (30) Terry,R (2504)-Efimenko,Z (2601) Chess.com INT 2021}) 10. g3 {[%emt 0:06:54]} Qc7 {[%emt 0:03:38]} 11. e4 {[%emt 0:15:34]} (11. O-O $14) 11... cxd4 {[%emt 0:01:54]} (11... O-O-O $5 {[%cal Rc5d4]}) 12. exd5 {[%emt 0:07:43]} Na5 {[%emt 0:03:51]} 13. Qc2 {[%emt 0:00:21] And now dxe6 would win.} dxc3 {[%emt 0:00:11]} 14. Ne4 {[%emt 0:05:19]} O-O-O {[%emt 0:22:23] [#] Strongly threatening ...cxb2.} 15. O-O {[%emt 0:19:47]} ({White should try} 15. Nxf6 $14 Rg6 16. Nxd7 Rxd7 17. dxe6 Rxe6 18. O-O) 15... Rg6 {[%emt 0:05:50]} 16. dxe6 {[%emt 0:03:39]} ({Much weaker is} 16. Qxc3 exd5 17. Rac1 Nc6 $11) (16. Rad1 {seems wilder.} cxb2 17. Qxb2 Qb6 18. Qc3+) 16... fxe6 {[%emt 0:01:26]} 17. Qxc3 {[%emt 0:00:36]} Qxc3 {[%emt 0:04:06] The position is equal.} 18. Nxc3 {[%emt 0:00:07]} Be7 {[%emt 0:02:08]} 19. Rfd1 {[%emt 0:00:14]} Nc6 {[%emt 0:03:57]} 20. Rac1 {[%emt 0:01:22]} a6 {[%emt 0:05:13]} 21. Ne4 {[%emt 0:00:44]} Be8 {[%emt 0:10:46]} 22. Rxd8+ {[%emt 0:00:25]} Kxd8 {[%emt 0:01:01]} 23. Nc5 {[%emt 0:00:36]} Bxc5 {[%emt 0:00:04]} 24. Rxc5 {[%emt 0:00:06]} e5 {[%emt 0:01:44]} 25. Kf1 {[%emt 0:00:53]} Kc7 {[%emt 0:01:14]} 26. a3 {[%emt 0:00:13]} Kd6 {[%emt 0:02:07]} 27. Rc4 {[%emt 0:00:31]} Rg7 {[%emt 0:05:52]} 28. Ke1 {[%emt 0:00:46]} Bg6 {[%emt 0:02:28]} 29. Nh4 {[%emt 0:01:23]} Nd4 {[%emt 0:02:15]} 30. Nf3 {[%emt 0:02:14]} Nc6 {[%emt 0:02:37]} 31. Nh4 {[%emt 0:00:21] Weighted Error Value: White=0.11 (very precise) /Black=0.09 (flawless)} 1/2-1/2

[Event "4NCL 2021-22"]
[Site "England"]
[Date "2022.04.30"]
[Round "7.17"]
[White "Hebden, Mark L"]
[Black "Gourlay, Iain"]
[Result "1/2-1/2"]
[ECO "D35"]
[WhiteElo "2455"]
[BlackElo "2318"]
[Annotator "TA"]
[PlyCount "89"]
[EventDate "2021.11.27"]
[EventType "team-tourn"]
[EventCountry "ENG"]
[SourceTitle "playchess.com"]
[Source "ChessBase"]
[SourceQuality "1"]
[TimeControl "40/6000+30:3000+30"]

{[%evp 14,89,18,10,30,24,19,-12,29,2,0,4,19,0,0,0,26,29,21,-24,-27,-27,-26,-23,-20,-19,-10,-20,-6,-16,0,-17,0,0,0,0,0,0,0,0,5,0,0,0,0,0,0,0,0,0,0,0,0,0,0,0,0,0,0,0,0,0,0,0,0,0,0,-37,-34,-31,-60,-51,-50,-62,-21,-39,-21,-21]} 1. d4 {[%emt 0:00:04]} d5 {[%emt 0:05:13]} 2. c4 {[%emt 0:01:08]} e6 {[%emt 0:00:44]} 3. Nc3 {[%emt 0:00:57]} Nf6 {[%emt 0:00:21]} 4. cxd5 {[%emt 0:01:00]} exd5 {[%emt 0:00:12]} 5. Bg5 {[%emt 0:00:28][%cal Bc1g5,Bg5h4,Bh4g3][%mdl 32]} c6 {[%emt 0:00:35]} 6. e3 {[%emt 0:01:27]} h6 {[%emt 0:04:09]} 7. Bh4 {[%emt 0:01:19]} Be7 {[%emt 0:00:25]} 8. Bd3 {[%emt 0:00:57]} Nbd7 {[%emt 0:00:49] D35: Queen's Gambit Declined: Exchange Variation.} 9. Bg3 {[%emt 0:03:44]} O-O {[%emt 0:05:35]} 10. Nf3 {[%emt 0:02:04]} Re8 {[%emt 0:13:17]} 11. O-O {[%emt 0:13:09]} Nh5 {[%emt 0:24:51]} 12. Be5 {[%emt 0:00:26]} Nhf6 {[%emt 0:00:57]} 13. Qc2 {[%emt 0:04:34]} Nxe5 {[%emt 0:05:38]} 14. Nxe5 {[%emt 0:00:25]} Ng4 {[%emt 0:01:57]} 15. Bh7+ {[%emt 0:01:49]} Kf8 {[%emt 0:00:14]} 16. Nxg4 {[%emt 0:00:23]} Bxg4 {[%emt 0:00:17]} 17. Bf5 {[%emt 0:00:08]} Bxf5 {[%emt 0:00:37]} 18. Qxf5 {[%emt 0:00:06]} Kg8 {[%emt 0:02:48]} 19. Rab1 {[%emt 0:00:43]} a5 {[%emt 0:03:10] [#]} 20. Rfc1 $146 {[%emt 0:00:39]} ({Predecessor:} 20. a4 Bd6 21. Rfe1 Bc7 22. g3 Qd6 23. Rbd1 Qb4 24. Qc2 Rad8 25. Ne2 Re4 26. Nc1 Qe7 27. Nd3 Bd6 28. Rc1 {½-½ (71) Saduakassova,D (2460)-Hoolt,S (2405) Riadh 2017}) 20... Bd6 {[%emt 0:01:50]} 21. Na4 {[%emt 0:01:05]} Qe7 {[%emt 0:02:36]} 22. Nc5 {[%emt 0:01:16]} Bxc5 {[%emt 0:02:01]} 23. Rxc5 {[%emt 0:00:07]} Qe4 {[%emt 0:03:09]} 24. Qxe4 {[%emt 0:00:09]} Rxe4 $11 {[%emt 0:00:17][%mdl 4096] Endgame KRR-KRR} 25. a4 {[%emt 0:01:22]} Kf8 {[%emt 0:09:13]} 26. g3 {[%emt 0:00:13]} Re7 {[%emt 0:03:37]} 27. Kf1 {[%emt 0:03:20]} Ke8 {[%emt 0:01:41]} 28. Ke2 {[%emt 0:00:40]} Kd7 {[%emt 0:02:56]} 29. g4 {[%emt 0:01:44]} Kd6 {[%emt 0:04:26]} 30. Rbc1 {[%emt 0:03:34]} Rc7 {[%emt 0:01:44]} 31. f3 {[%emt 0:01:14]} Re7 {[%emt 0:03:44]} 32. Kd2 {[%emt 0:04:29]} Rae8 {[%emt 0:03:40]} 33. R1c3 {[%emt 0:04:06]} h5 {[%emt 0:03:31]} 34. g5 {[%emt 0:00:45]} f6 {[%emt 0:00:23]} 35. gxf6 {[%emt 0:01:37]} gxf6 {[%emt 0:00:05]} 36. Rxa5 {[%emt 0:01:56]} Rg8 {[%emt 0:00:27]} 37. Rb3 {[%emt 0:03:35]} Rg2+ {[%emt 0:00:08]} 38. Kd3 {[%emt 0:00:10]} Rf2 {[%emt 0:01:06]} 39. Ra7 $1 {[%emt 0:01:16]} Rxf3 {[%emt 0:00:18]} 40. Rbxb7 {[%emt 0:08:04]} Rexe3+ {[%emt 0:00:34]} 41. Kc2 $1 {[%emt 0:50:31]} ({Much weaker is} 41. Kd2 Rd3+ 42. Ke2 Rh3 $17) 41... Re2+ {[%emt 0:07:28]} 42. Kb1 $1 {[%emt 0:00:00] [#] Rd7+ is the strong threat.} Rd2 {[%emt 0:01:09]} (42... Rxh2 $2 43. Re7 c5 44. Rad7+ Kc6 45. Rc7+ Kb6 46. dxc5+ Ka5 47. Rb7 $18) 43. Rb4 {[%emt 0:00:00]} Rf4 {[%emt 0:04:07]} 44. Rf7 {[%emt 0:00:00]} Rfxd4 {[%emt 0:04:48]} 45. Rxd4 {[%emt 0:00:00] Weighted Error Value: White=0.07 (flawless) /Black=0.06 (flawless)} 1/2-1/2

[Event "4NCL 2021-22"]
[Site "England"]
[Date "2022.04.30"]
[Round "7.18"]
[White "Olson, Hamish"]
[Black "Suarez Real, Alberto"]
[Result "1-0"]
[ECO "A49"]
[WhiteElo "2296"]
[BlackElo "2445"]
[Annotator "TA"]
[PlyCount "79"]
[EventDate "2021.11.27"]
[EventType "team-tourn"]
[EventCountry "ENG"]
[SourceTitle "playchess.com"]
[Source "ChessBase"]
[SourceQuality "1"]
[TimeControl "40/6000+30:3000+30"]

{[%evp 12,79,33,43,38,0,0,-3,0,-4,-10,-4,-6,-4,-6,-8,0,0,0,-12,0,0,0,0,0,0,0,0,0,-13,0,-4,0,-8,-4,-27,0,-20,-11,-5,26,25,26,-21,-33,-30,37,-22,-29,-22,-28,-21,103,90,124,141,120,38,101,98,98,106,249,232,427,424,535,538,1170,1082]} 1. d4 {[%emt 0:00:17]} Nf6 {[%emt 0:00:16]} 2. Nf3 {[%emt 0:21:04]} g6 {[%emt 0:00:16]} 3. g3 {[%emt 0:00:08]} Bg7 {[%emt 0:00:35]} 4. Bg2 {[%emt 0:00:05]} O-O {[%emt 0:00:21]} 5. O-O {[%emt 0:00:07]} d6 {[%emt 0:02:41]} 6. Re1 {[%emt 0:00:03]} Nc6 {[%emt 0:18:12]} 7. e4 {[%emt 0:00:32]} e5 {[%emt 0:01:17] A49: 1 d4 Nf6 2 Nf3 g6 3 g3: Anti-King's Indian systems.} 8. dxe5 {[%emt 0:00:09]} dxe5 {[%emt 0:07:09]} 9. Qxd8 {[%emt 0:02:11]} Rxd8 {[%emt 0:00:09] The position is equal.} 10. c3 {[%emt 0:00:51] [#]} Ne8 $146 {[%emt 0:27:36]} ({Predecessor:} 10... h6 11. Nbd2 Be6 12. Bf1 Nd7 13. Nb3 a5 14. Be3 Bf8 15. Nbd2 Nc5 16. Bxc5 Bxc5 {½-½ (77) Sai,K (1941)-Rathnakaran,K (2326) Hyderabad 2017}) 11. Bf1 {[%emt 0:04:00]} Nd6 {[%emt 0:11:42]} 12. Na3 {[%emt 0:01:57]} f6 {[%emt 0:11:57]} 13. Nb5 {[%emt 0:02:12]} Bg4 {[%emt 0:03:40] Strongly threatening ...Nxb5.} 14. Kg2 {[%emt 0:11:18]} Nxb5 {[%emt 0:12:35]} 15. Bxb5 {[%emt 0:01:09]} Be6 {[%emt 0:00:04] Prevents Bc4.} 16. Be3 {[%emt 0:02:24]} Na5 {[%emt 0:02:49]} 17. Nd2 {[%emt 0:04:19] Against Nc4} a6 {[%emt 0:01:07]} 18. Be2 {[%emt 0:01:13]} b6 {[%emt 0:04:34]} 19. b4 {[%emt 0:04:08]} Nb7 {[%emt 0:00:05]} 20. a4 {[%emt 0:11:03]} Bf8 {[%emt 0:01:43]} 21. Reb1 {[%emt 0:05:04]} Kf7 {[%emt 0:01:26]} 22. f3 {[%emt 0:10:11]} a5 {[%emt 0:00:40]} 23. Kf2 {[%emt 0:05:50]} Bd7 {[%emt 0:00:26]} 24. Bd1 {[%emt 0:00:55]} Ke8 {[%emt 0:00:22]} 25. Bc2 {[%emt 0:00:52]} Ra6 {[%emt 0:00:39]} 26. b5 {[%emt 0:03:11]} Raa8 {[%emt 0:00:05]} 27. f4 {[%emt 0:00:37]} (27. Bb3 {is superior.}) 27... Bc5 $11 {[%emt 0:01:01][%cal Od7b5]} 28. fxe5 {[%emt 0:01:03]} Bxb5 {[%emt 0:00:30]} 29. Rd1 {[%emt 0:04:09]} (29. Nb3 $14 Bc4 30. exf6 (30. Nxc5 Nxc5 31. exf6 Kf7 $11)) 29... Bd3 {[%emt 0:00:11]} 30. Bb3 {[%emt 0:01:00]} fxe5 {[%emt 0:00:34] Hoping for ...Ke7.} 31. Bd5 {[%emt 0:01:06] [#]} Rab8 {[%emt 0:00:35] [#]} (31... Rxd5 $1 $11 {remains equal.} 32. exd5 Ke7 33. Bxc5+ Nxc5) 32. Nf3 $1 $36 {[%emt 0:00:59][%csl LRd3,LRe5][%cal Bd2f3,Bf3e5,Be5c6][%mdl 2144] Discovered Attack. White is really pushing.} Ba6 {[%emt 0:00:34]} 33. Nxe5 {[%emt 0:01:02]} Rd6 {[%emt 0:00:21]} 34. c4 {[%emt 0:01:39] 0x0.001ae8c6afbddp-1022s more active pieces.} ({White should try} 34. Nc6 $16 Ra8 35. e5 Rxd5 36. Rxd5) 34... Rbd8 {[%emt 0:00:42]} (34... Ke7 $14) 35. Ke2 {[%emt 0:01:35]} Bxe3 {[%emt 0:00:19]} 36. Kxe3 {[%emt 0:00:05]} Rf6 {[%emt 0:00:42] Black cannot hold the game after this.} (36... Rc8 $16 {was called for.}) 37. Nc6 $18 {[%emt 0:01:03]} Rc8 $2 {[%emt 0:00:32]} (37... Rdd6) 38. e5 {[%emt 0:00:56] White is clearly winning.} Rf8 {[%emt 0:00:30]} 39. Be6 {[%emt 0:00:48]} Ra8 {[%emt 0:00:30]} 40. Rd7 {[%emt 0:00:39] Weighted Error Value: White=0.10 (very precise) /Black=0.30} 1-0

[Event "4NCL 2021-22"]
[Site "England"]
[Date "2022.04.30"]
[Round "7.19"]
[White "Kilpatrick, Callum"]
[Black "McKay, Roderick M"]
[Result "1-0"]
[ECO "C41"]
[WhiteElo "2409"]
[BlackElo "2208"]
[Annotator "TA"]
[PlyCount "81"]
[EventDate "2021.11.27"]
[EventType "team-tourn"]
[EventCountry "ENG"]
[SourceTitle "playchess.com"]
[Source "ChessBase"]
[SourceQuality "1"]
[TimeControl "40/6000+30:3000+30"]

{[%evp 12,81,52,38,52,48,39,21,64,47,39,17,19,0,22,-1,10,0,40,36,46,39,73,56,85,62,114,52,51,60,53,62,143,67,82,28,39,30,58,61,52,74,60,55,125,122,131,133,133,146,280,203,226,226,218,216,245,216,384,394,379,352,404,326,412,402,337,344,1105,1085,1231,1185]} 1. e4 {[%emt 0:04:52]} d6 {[%emt 0:02:35]} 2. d4 {[%emt 0:00:18]} Nf6 {[%emt 0:00:07]} 3. Nc3 {[%emt 0:00:06]} e5 {[%emt 0:00:16]} 4. Nf3 {[%emt 0:00:42]} Nbd7 {[%emt 0:00:29]} 5. Bc4 {[%emt 0:00:38]} Be7 {[%emt 0:00:41]} 6. O-O {[%emt 0:01:23]} h6 {[%emt 0:00:30]} 7. Re1 {[%emt 0:09:07] 7.a4 deserves study.} c6 {[%emt 0:01:34] C41: Philidor Defence.} 8. a4 {[%emt 0:01:37]} Qc7 {[%emt 0:00:15]} 9. b3 {[%emt 0:21:37]} Nf8 {[%emt 0:09:02] The position is equal.} 10. Bb2 {[%emt 0:12:36] [#] aiming for dxe5.} Ng6 {[%emt 0:04:28]} 11. h3 {[%emt 0:02:12] Prevents Bg4.} O-O {[%emt 0:07:54]} 12. Bf1 {[%emt 0:03:57] [#]} Bd7 $146 {[%emt 0:06:58]} ({Predecessor:} 12... b6 13. d5 cxd5 14. Nxd5 Nxd5 15. Qxd5 Be6 16. Qd2 Rac8 17. c4 a6 18. g3 Rb8 {0-1 (49) Thavandiran,S (2420)-Koellner,R (2454) Chess.com INT 2022}) 13. g3 {[%emt 0:03:01]} Rfd8 {[%emt 0:02:43]} 14. Qd3 {[%emt 0:03:22]} Be8 {[%emt 0:06:12]} 15. Bg2 {[%emt 0:01:31]} Rac8 {[%emt 0:03:33]} 16. Nd1 {[%emt 0:11:17][%cal Bc3d1,Bd1e3,Be3f5][%mdl 32]} Bf8 {[%emt 0:01:15]} 17. Ne3 {[%emt 0:07:33]} Qb8 {[%emt 0:12:12]} 18. Nf5 {[%emt 0:02:13]} c5 {[%emt 0:10:00]} (18... Bd7 $14) 19. dxc5 {[%emt 0:03:41] 0x0.0007b50af616dp-1022s more active pieces.} (19. d5 $16) 19... d5 {[%emt 0:01:13]} 20. exd5 {[%emt 0:02:01]} Rxd5 {[%emt 0:07:14]} 21. Qe2 {[%emt 0:01:06][%cal Rf3e5]} e4 {[%emt 0:06:09] [#]} (21... Rdxc5 $14 22. c4 (22. Nxe5 $2 Rxc2 23. Qd3 Rxb2 $19) (22. Bxe5 Nxe5 23. Nxe5 Rxc2 $11) 22... e4) 22. N3d4 {[%emt 0:00:46]} (22. N3h4 $1 $16) 22... Bxc5 {[%emt 0:09:34]} 23. c4 {[%emt 0:03:31]} ({White should try} 23. Bxe4 $16 Nxe4 24. Qxe4) 23... Re5 $11 {[%emt 0:01:46]} 24. Ne3 {[%emt 0:00:07]} Bd7 {[%emt 0:01:14]} 25. Ndc2 $36 {[%emt 0:01:49][%mdl 2048] White has good play.} Rce8 {[%emt 0:02:52][%cal Oa7a5]} 26. b4 {[%emt 0:04:15]} Bxe3 {[%emt 0:00:34]} 27. Nxe3 {[%emt 0:00:09]} ({Wrong is} 27. fxe3 $2 Rg5 28. Bxf6 Rxg3 $19) 27... Qc8 {[%emt 0:01:06]} (27... R5e6 $1 $14) 28. h4 {[%emt 0:03:07][%cal Bh3h4,Bh4h5][%mdl 32]} a5 {[%emt 0:03:07][%cal Oa5b4]} 29. b5 {[%emt 0:01:12]} Bh3 {[%emt 0:00:51]} 30. Bh1 {[%emt 0:03:08]} Nd7 {[%emt 0:03:39]} (30... Rc5 $16) 31. h5 {[%emt 0:01:36]} Ngf8 {[%emt 0:00:50]} 32. Bxe5 {[%emt 0:00:04]} Rxe5 {[%emt 0:00:31]} 33. Rad1 {[%emt 0:00:20]} Nc5 {[%emt 0:00:25]} 34. Rd5 {[%emt 0:00:37]} Qe6 {[%emt 0:01:25]} (34... Re8 {was necessary.} 35. Qd2 Be6) 35. Rxe5 {[%emt 0:00:48]} Qxe5 {[%emt 0:00:10]} 36. Nd5 {[%emt 0:00:10]} f5 {[%emt 0:00:37]} 37. Nf4 {[%emt 0:01:28]} Bg4 {[%emt 0:01:12]} 38. f3 {[%emt 0:00:32][%cal Bf2f3,Bf3g4][%mdl 32]} Qc3 {[%emt 0:03:21]} 39. Qe3 {[%emt 0:00:44]} ({Much less strong is} 39. fxg4 $6 Qxg3+ 40. Ng2 f4 $18) 39... Nd3 $2 {[%emt 0:00:45]} (39... Qxe3+ 40. Rxe3 exf3 41. Bxf3 Bxf3) 40. Nxd3 $18 {[%emt 0:00:12]} exd3 {[%emt 0:00:08]} 41. fxg4 {[%emt 0:50:23] Weighted Error Value: White=0.15 (very precise) /Black=0.30} 1-0